[Event "Titled Tuesday Blitz November 07 Late 2023"]
[White "Ruge, Edison"]
[Black "Pinto, Daniel"]
[WhiteFideId "4401000"]
[BlackFideId "3303144"]
[WhiteElo "2298"]
[BlackElo "2509"]
[Result "0-1"]
[Round "5"]
[TimeControl "180+1"]
[Date "2023.11.07"]
[WhiteClock "0:00:03"]
[BlackClock "0:00:12"]
[Board "96"]

1. e4 {[%clk 0:02:53]}  e5 {[%clk 0:02:58]} 2. Nf3 {[%clk 0:02:54]}  Nc6 {[%clk 0:02:56]} 3. Bb5 {[%clk 0:02:55]}  a6 {[%clk 0:02:46]} 4. Ba4 {[%clk 0:02:55]}  Nf6 {[%clk 0:02:47]} 5. Qe2 {[%clk 0:02:55]}  d6 {[%clk 0:02:46]} 6. Bxc6+ {[%clk 0:02:55]}  bxc6 {[%clk 0:02:46]} 7. h3 {[%clk 0:02:55]}  Be7 {[%clk 0:02:45]} 8. d3 {[%clk 0:02:56]}  O-O {[%clk 0:02:45]} 9. O-O {[%clk 0:02:56]}  Kh8 {[%clk 0:02:45]} 10. Rd1 {[%clk 0:02:56]}  c5 {[%clk 0:02:45]} 11. Nbd2 {[%clk 0:02:56]}  Ng8 {[%clk 0:02:44]} 12. Nf1 {[%clk 0:02:57]}  f5 {[%clk 0:02:44]} 13. exf5 {[%clk 0:02:56]}  Bxf5 {[%clk 0:02:45]} 14. Ng3 {[%clk 0:02:56]}  Bg6 {[%clk 0:02:45]} 15. Be3 {[%clk 0:02:41]}  Rb8 {[%clk 0:02:44]} 16. b3 {[%clk 0:02:41]}  Qe8 {[%clk 0:02:34]} 17. Re1 {[%clk 0:02:36]}  Nh6 {[%clk 0:02:26]} 18. Nd2 {[%clk 0:02:35]}  Nf5 {[%clk 0:02:19]} 19. Nxf5 {[%clk 0:02:33]}  Bxf5 {[%clk 0:02:20]} 20. Nf1 {[%clk 0:02:32]}  Bf6 {[%clk 0:02:12]} 21. Ng3 {[%clk 0:02:29]}  Bg6 {[%clk 0:02:11]} 22. Rad1 {[%clk 0:02:29]}  a5 {[%clk 0:02:10]} 23. a4 {[%clk 0:02:28]}  Bh4 {[%clk 0:02:08]} 24. Bd2 {[%clk 0:02:11]}  Qe6 {[%clk 0:01:53]} 25. Rf1 {[%clk 0:02:10]}  Rf7 {[%clk 0:01:53]} 26. Bxa5 {[%clk 0:02:01]}  Rbf8 {[%clk 0:01:52]} 27. Nh1 {[%clk 0:01:56]}  d5 {[%clk 0:01:42]} 28. Bd2 {[%clk 0:01:52]}  e4 {[%clk 0:01:42]} 29. Rde1 {[%clk 0:01:43]}  Qd7 {[%clk 0:01:13]} 30. dxe4 {[%clk 0:01:23]}  Bxe4 {[%clk 0:01:13]} 31. c3 {[%clk 0:01:23]}  Qf5 {[%clk 0:01:07]} 32. Qg4 {[%clk 0:01:22]}  Qxg4 {[%clk 0:01:05]} 33. hxg4 {[%clk 0:01:21]}  Bd3 {[%clk 0:01:06]} 34. Be3 {[%clk 0:01:17]}  Be7 {[%clk 0:01:04]} 35. Rd1 {[%clk 0:01:10]}  Bxf1 {[%clk 0:01:04]} 36. Kxf1 {[%clk 0:01:11]}  c6 {[%clk 0:01:04]} 37. Ke2 {[%clk 0:01:11]}  Rb8 {[%clk 0:01:04]} 38. Rb1 {[%clk 0:01:10]}  Bd6 {[%clk 0:01:03]} 39. Kd3 {[%clk 0:01:03]}  Rfb7 {[%clk 0:00:59]} 40. Kc2 {[%clk 0:01:02]}  d4 {[%clk 0:00:58]} 41. Bd2 {[%clk 0:01:01]}  c4 {[%clk 0:00:55]} 42. b4 {[%clk 0:00:59]}  dxc3 {[%clk 0:00:47]} 43. Bxc3 {[%clk 0:00:57]}  Bxb4 {[%clk 0:00:48]} 44. Ng3 {[%clk 0:00:44]}  Bxc3 {[%clk 0:00:47]} 45. Rxb7 {[%clk 0:00:45]}  Rxb7 {[%clk 0:00:48]} 46. Kxc3 {[%clk 0:00:44]}  Ra7 {[%clk 0:00:48]} 47. Kxc4 {[%clk 0:00:44]}  Rxa4+ {[%clk 0:00:48]} 48. Kc5 {[%clk 0:00:45]}  Rxg4 {[%clk 0:00:45]} 49. Kxc6 {[%clk 0:00:42]}  Rd4 {[%clk 0:00:42]} 50. Kc5 {[%clk 0:00:36]}  Rd1 {[%clk 0:00:38]} 51. Ne4 {[%clk 0:00:35]}  h6 {[%clk 0:00:35]} 52. g3 {[%clk 0:00:30]}  Kh7 {[%clk 0:00:35]} 53. f4 {[%clk 0:00:27]}  h5 {[%clk 0:00:31]} 54. Nf2 {[%clk 0:00:18]}  Rd8 {[%clk 0:00:25]} 55. Ne4 {[%clk 0:00:15]}  Kg6 {[%clk 0:00:24]} 56. Ng5 {[%clk 0:00:13]}  Rd3 {[%clk 0:00:22]} 57. Ne4 {[%clk 0:00:13]}  Kf5 {[%clk 0:00:22]} 58. Nd6+ {[%clk 0:00:11]}  Kg4 {[%clk 0:00:18]} 59. Ne8 {[%clk 0:00:10]}  g6 {[%clk 0:00:15]} 60. Nf6+ {[%clk 0:00:05]}  Kxg3 {[%clk 0:00:14]} 61. Nd5 {[%clk 0:00:05]}  Rxd5+ {[%clk 0:00:11]} 62. Kxd5 {[%clk 0:00:03]}  Kxf4 {[%clk 0:00:12]} 0-1


[Site "https://www.chess.com"]

[Event "Titled Tuesday Blitz November 07 Late 2023"]
[White "Sreyas Payyappat"]
[Black "Gertler, David"]
[WhiteFideId "46674969"]
[BlackFideId "2017377"]
[WhiteElo "2507"]
[BlackElo "2276"]
[Result "1-0"]
[Round "5"]
[TimeControl "180+1"]
[Date "2023.11.07"]
[WhiteClock "0:00:18"]
[BlackClock "0:00:05"]
[Board "97"]

1. e4 {[%clk 0:03:00]}  e5 {[%clk 0:02:57]} 2. Nf3 {[%clk 0:03:01]}  Nc6 {[%clk 0:02:57]} 3. Bc4 {[%clk 0:03:02]}  Bc5 {[%clk 0:02:57]} 4. c3 {[%clk 0:03:02]}  Qf6 {[%clk 0:02:57]} 5. d4 {[%clk 0:03:03]}  exd4 {[%clk 0:02:56]} 6. O-O {[%clk 0:03:01]}  Nge7 {[%clk 0:02:50]} 7. Bg5 {[%clk 0:02:53]}  Qg6 {[%clk 0:02:50]} 8. Bxe7 {[%clk 0:02:40]}  Nxe7 {[%clk 0:02:49]} 9. cxd4 {[%clk 0:02:33]}  Bd6 {[%clk 0:02:38]} 10. e5 {[%clk 0:02:24]}  Bb4 {[%clk 0:02:38]} 11. Nh4 {[%clk 0:02:17]}  Qh6 {[%clk 0:02:23]} 12. g3 {[%clk 0:02:11]}  O-O {[%clk 0:02:21]} 13. f4 {[%clk 0:02:09]}  Ba5 {[%clk 0:02:17]} 14. f5 {[%clk 0:02:09]}  Bb6 {[%clk 0:01:56]} 15. Qd3 {[%clk 0:01:59]}  Nc6 {[%clk 0:01:53]} 16. Nf3 {[%clk 0:01:56]}  d6 {[%clk 0:01:21]} 17. Kh1 {[%clk 0:01:47]}  Qh5 {[%clk 0:01:12]} 18. e6 {[%clk 0:01:15]}  fxe6 {[%clk 0:01:11]} 19. Bxe6+ {[%clk 0:00:30]}  Bxe6 {[%clk 0:01:10]} 20. fxe6 {[%clk 0:00:31]}  d5 {[%clk 0:01:09]} 21. Nc3 {[%clk 0:00:29]}  Qf5 {[%clk 0:00:44]} 22. Qe3 {[%clk 0:00:19]}  Rae8 {[%clk 0:00:36]} 23. Rae1 {[%clk 0:00:19]}  Nd8 {[%clk 0:00:05]} 24. e7 {[%clk 0:00:18]} 1-0


[Site "https://www.chess.com"]

[Event "Titled Tuesday Blitz November 07 Late 2023"]
[White "TimGrutter03"]
[Black "Modric, Nesa"]
[BlackFideId "922579"]
[WhiteElo "2506"]
[BlackElo "2194"]
[Result "1-0"]
[Round "5"]
[TimeControl "180+1"]
[Date "2023.11.07"]
[WhiteClock "0:00:46"]
[BlackClock "0:00:07"]
[Board "98"]

1. c4 {[%clk 0:02:51]}  e6 {[%clk 0:02:59]} 2. Nc3 {[%clk 0:02:50]}  d5 {[%clk 0:02:59]} 3. cxd5 {[%clk 0:02:51]}  exd5 {[%clk 0:02:59]} 4. d4 {[%clk 0:02:52]}  Nf6 {[%clk 0:03:00]} 5. Bg5 {[%clk 0:02:51]}  c6 {[%clk 0:03:00]} 6. e3 {[%clk 0:02:51]}  h6 {[%clk 0:02:58]} 7. Bh4 {[%clk 0:02:51]}  Be7 {[%clk 0:02:58]} 8. Bd3 {[%clk 0:02:51]}  O-O {[%clk 0:02:59]} 9. Qc2 {[%clk 0:02:51]}  Nbd7 {[%clk 0:02:59]} 10. Nge2 {[%clk 0:02:50]}  Re8 {[%clk 0:02:59]} 11. O-O {[%clk 0:02:49]}  Bd6 {[%clk 0:02:59]} 12. Bg3 {[%clk 0:02:47]}  Bxg3 {[%clk 0:02:58]} 13. Nxg3 {[%clk 0:02:47]}  Nf8 {[%clk 0:02:54]} 14. Rae1 {[%clk 0:02:41]}  Ne6 {[%clk 0:02:42]} 15. f3 {[%clk 0:02:17]}  Ng5 {[%clk 0:02:29]} 16. Kh1 {[%clk 0:02:05]}  a5 {[%clk 0:01:35]} 17. a4 {[%clk 0:01:55]}  Qd6 {[%clk 0:01:31]} 18. Qd2 {[%clk 0:01:44]}  Ne6 {[%clk 0:01:24]} 19. Bb1 {[%clk 0:01:37]}  Qf8 {[%clk 0:01:19]} 20. Qd3 {[%clk 0:01:35]}  g6 {[%clk 0:01:19]} 21. e4 {[%clk 0:01:32]}  Nf4 {[%clk 0:01:13]} 22. Qd2 {[%clk 0:01:15]}  Ne6 {[%clk 0:00:50]} 23. e5 {[%clk 0:01:09]}  Nh7 {[%clk 0:00:40]} 24. f4 {[%clk 0:01:09]}  Qg7 {[%clk 0:00:30]} 25. f5 {[%clk 0:01:08]}  Neg5 {[%clk 0:00:29]} 26. h4 {[%clk 0:01:01]}  Ne4 {[%clk 0:00:26]} 27. Bxe4 {[%clk 0:00:55]}  dxe4 {[%clk 0:00:26]} 28. Ncxe4 {[%clk 0:00:56]}  Kh8 {[%clk 0:00:14]} 29. Nd6 {[%clk 0:00:50]}  Rd8 {[%clk 0:00:12]} 30. fxg6 {[%clk 0:00:48]}  Rxd6 {[%clk 0:00:10]} 31. exd6 {[%clk 0:00:48]}  fxg6 {[%clk 0:00:07]} 32. Re8+ {[%clk 0:00:46]} 1-0


[Site "https://www.chess.com"]

[Event "Titled Tuesday Blitz November 07 Late 2023"]
[White "Bilan, Danila"]
[Black "Sepulveda Rojas, Jorge"]
[WhiteFideId "24161918"]
[BlackFideId "3404803"]
[WhiteElo "2503"]
[BlackElo "2499"]
[Result "1-0"]
[Round "5"]
[TimeControl "180+1"]
[Date "2023.11.07"]
[WhiteClock "0:00:06"]
[BlackClock "0:00:02"]
[Board "99"]

1. d4 {[%clk 0:03:00]}  d5 {[%clk 0:02:58]} 2. Nf3 {[%clk 0:03:00]}  Nf6 {[%clk 0:02:58]} 3. c4 {[%clk 0:03:00]}  c6 {[%clk 0:02:58]} 4. Nc3 {[%clk 0:03:00]}  e6 {[%clk 0:02:57]} 5. Bg5 {[%clk 0:02:58]}  Nbd7 {[%clk 0:02:57]} 6. cxd5 {[%clk 0:02:57]}  cxd5 {[%clk 0:02:56]} 7. e3 {[%clk 0:02:58]}  a6 {[%clk 0:02:56]} 8. Bd3 {[%clk 0:02:57]}  Bd6 {[%clk 0:02:56]} 9. O-O {[%clk 0:02:57]}  O-O {[%clk 0:02:55]} 10. Qc2 {[%clk 0:02:56]}  h6 {[%clk 0:02:55]} 11. Bh4 {[%clk 0:02:57]}  b5 {[%clk 0:02:54]} 12. e4 {[%clk 0:02:55]}  dxe4 {[%clk 0:02:53]} 13. Nxe4 {[%clk 0:02:56]}  Be7 {[%clk 0:02:52]} 14. Ne5 {[%clk 0:02:29]}  Bb7 {[%clk 0:02:22]} 15. Nc6 {[%clk 0:02:14]}  Bxc6 {[%clk 0:02:19]} 16. Qxc6 {[%clk 0:02:15]}  Nxe4 {[%clk 0:02:14]} 17. Qxe4 {[%clk 0:02:10]}  g6 {[%clk 0:02:11]} 18. Bg3 {[%clk 0:02:00]}  Nf6 {[%clk 0:01:55]} 19. Qe3 {[%clk 0:01:52]}  Kh7 {[%clk 0:01:51]} 20. h4 {[%clk 0:01:46]}  Nh5 {[%clk 0:01:48]} 21. Be5 {[%clk 0:01:28]}  Bxh4 {[%clk 0:01:43]} 22. Be4 {[%clk 0:01:24]}  Ra7 {[%clk 0:01:42]} 23. d5 {[%clk 0:01:17]}  Rd7 {[%clk 0:01:35]} 24. d6 {[%clk 0:00:36]}  Rxd6 {[%clk 0:01:29]} 25. Bxd6 {[%clk 0:00:34]}  Qxd6 {[%clk 0:01:30]} 26. Rfd1 {[%clk 0:00:32]}  Qe7 {[%clk 0:01:22]} 27. Qf3 {[%clk 0:00:22]}  Kg7 {[%clk 0:01:20]} 28. Rac1 {[%clk 0:00:20]}  Qb4 {[%clk 0:01:04]} 29. b3 {[%clk 0:00:14]}  Nf6 {[%clk 0:01:03]} 30. Bb1 {[%clk 0:00:13]}  Bg5 {[%clk 0:00:58]} 31. Rc7 {[%clk 0:00:12]}  Nd5 {[%clk 0:00:55]} 32. Rd7 {[%clk 0:00:09]}  Nc3 {[%clk 0:00:48]} 33. Qd3 {[%clk 0:00:04]}  Be7 {[%clk 0:00:38]} 34. Rxe7 {[%clk 0:00:02]}  Qxe7 {[%clk 0:00:36]} 35. Qxc3+ {[%clk 0:00:02]}  e5 {[%clk 0:00:36]} 36. Qd3 {[%clk 0:00:02]}  Rc8 {[%clk 0:00:32]} 37. Qd5 {[%clk 0:00:03]}  b4 {[%clk 0:00:24]} 38. Bd3 {[%clk 0:00:03]}  a5 {[%clk 0:00:23]} 39. Bc4 {[%clk 0:00:03]}  Rc5 {[%clk 0:00:22]} 40. Qe4 {[%clk 0:00:02]}  Qa7 {[%clk 0:00:20]} 41. Re1 {[%clk 0:00:02]}  a4 {[%clk 0:00:19]} 42. Qd3 {[%clk 0:00:02]}  a3 {[%clk 0:00:17]} 43. Rd1 {[%clk 0:00:02]}  Qc7 {[%clk 0:00:16]} 44. Qd7 {[%clk 0:00:02]}  Kf6 {[%clk 0:00:15]} 45. Qxc7 {[%clk 0:00:03]}  Rxc7 {[%clk 0:00:16]} 46. Rd6+ {[%clk 0:00:03]}  Kf5 {[%clk 0:00:16]} 47. Rb6 {[%clk 0:00:04]}  Rd7 {[%clk 0:00:15]} 48. Rxb4 {[%clk 0:00:04]}  Rd2 {[%clk 0:00:16]} 49. Ra4 {[%clk 0:00:02]}  Rxa2 {[%clk 0:00:16]} 50. Bxf7 {[%clk 0:00:03]}  Kf6 {[%clk 0:00:13]} 51. Bg8 {[%clk 0:00:03]}  Kg7 {[%clk 0:00:12]} 52. Bc4 {[%clk 0:00:03]}  Ra1+ {[%clk 0:00:11]} 53. Kh2 {[%clk 0:00:04]}  Ra2 {[%clk 0:00:08]} 54. f3 {[%clk 0:00:03]}  h5 {[%clk 0:00:07]} 55. Ra5 {[%clk 0:00:03]}  Kf6 {[%clk 0:00:07]} 56. b4 {[%clk 0:00:04]}  Ra1 {[%clk 0:00:06]} 57. Ra6+ {[%clk 0:00:04]}  Kg5 {[%clk 0:00:06]} 58. Bd3 {[%clk 0:00:04]}  Kf4 {[%clk 0:00:06]} 59. Rxg6 {[%clk 0:00:04]}  Rd1 {[%clk 0:00:05]} 60. Bc4 {[%clk 0:00:04]}  Rc1 {[%clk 0:00:05]} 61. Bg8 {[%clk 0:00:03]}  Rc8 {[%clk 0:00:04]} 62. Bb3 {[%clk 0:00:02]}  Ra8 {[%clk 0:00:04]} 63. Ba2 {[%clk 0:00:02]}  Rb8 {[%clk 0:00:04]} 64. Ra6 {[%clk 0:00:02]}  Rxb4 {[%clk 0:00:04]} 65. Rxa3 {[%clk 0:00:03]}  Rb2 {[%clk 0:00:04]} 66. Ra4+ {[%clk 0:00:03]}  Kg5 {[%clk 0:00:03]} 67. Bd5 {[%clk 0:00:03]}  Kf5 {[%clk 0:00:03]} 68. Be4+ {[%clk 0:00:04]}  Kg5 {[%clk 0:00:03]} 69. Ra6 {[%clk 0:00:04]}  Kf4 {[%clk 0:00:01]} 70. Rf6+ {[%clk 0:00:04]}  Ke3 {[%clk 0:00:02]} 71. Rf5 {[%clk 0:00:04]}  Kd4 {[%clk 0:00:02]} 72. Rxh5 {[%clk 0:00:04]}  Rd2 {[%clk 0:00:03]} 73. Kg3 {[%clk 0:00:05]}  Rb2 {[%clk 0:00:04]} 74. Rh7 {[%clk 0:00:05]}  Ra2 {[%clk 0:00:04]} 75. Rb7 {[%clk 0:00:05]}  Ke3 {[%clk 0:00:04]} 76. Rb3+ {[%clk 0:00:05]}  Kd4 {[%clk 0:00:05]} 77. Rd3+ {[%clk 0:00:05]}  Kc5 {[%clk 0:00:05]} 78. Rd5+ {[%clk 0:00:05]}  Kc4 {[%clk 0:00:05]} 79. Rxe5 {[%clk 0:00:06]}  Ra7 {[%clk 0:00:05]} 80. Kf4 {[%clk 0:00:06]}  Rg7 {[%clk 0:00:05]} 81. g4 {[%clk 0:00:06]}  Rf7+ {[%clk 0:00:06]} 82. Rf5 {[%clk 0:00:07]}  Kd4 {[%clk 0:00:02]} 83. Rxf7 {[%clk 0:00:06]} 1-0


[Site "https://www.chess.com"]

[Event "Titled Tuesday Blitz November 07 Late 2023"]
[White "Aung Thant Zin"]
[Black "Adla, Diego"]
[WhiteFideId "13000063"]
[BlackFideId "100072"]
[WhiteElo "2028"]
[BlackElo "2631"]
[Result "0-1"]
[Round "5"]
[TimeControl "180+1"]
[Date "2023.11.07"]
[WhiteClock "0:00:00"]
[BlackClock "0:00:50"]
[Board "101"]

1. e4 {[%clk 0:02:55]}  e5 {[%clk 0:02:59]} 2. Nf3 {[%clk 0:02:54]}  Nc6 {[%clk 0:03:00]} 3. d4 {[%clk 0:02:54]}  exd4 {[%clk 0:03:00]} 4. Nxd4 {[%clk 0:02:55]}  Qf6 {[%clk 0:02:59]} 5. Nb5 {[%clk 0:02:53]}  Bc5 {[%clk 0:02:58]} 6. Qe2 {[%clk 0:02:51]}  Bb6 {[%clk 0:02:56]} 7. N1c3 {[%clk 0:02:47]}  Nge7 {[%clk 0:02:56]} 8. Be3 {[%clk 0:02:38]}  Ba5 {[%clk 0:02:56]} 9. O-O-O {[%clk 0:02:29]}  a6 {[%clk 0:02:55]} 10. Nd5 {[%clk 0:01:58]}  Nxd5 {[%clk 0:02:55]} 11. exd5 {[%clk 0:01:58]}  axb5 {[%clk 0:02:55]} 12. Bg5+ {[%clk 0:01:57]}  Qe5 {[%clk 0:02:54]} 13. dxc6 {[%clk 0:01:57]}  Qxe2 {[%clk 0:02:50]} 14. cxd7+ {[%clk 0:01:52]}  Bxd7 {[%clk 0:02:51]} 15. Bxe2 {[%clk 0:01:52]}  Bc6 {[%clk 0:02:48]} 16. f3 {[%clk 0:01:24]}  O-O {[%clk 0:02:44]} 17. Kb1 {[%clk 0:01:24]}  Rfe8 {[%clk 0:02:38]} 18. Bd3 {[%clk 0:01:24]}  f6 {[%clk 0:02:32]} 19. Bd2 {[%clk 0:01:15]}  Bxd2 {[%clk 0:02:27]} 20. Rxd2 {[%clk 0:01:15]}  g6 {[%clk 0:02:27]} 21. Re2 {[%clk 0:01:05]}  Rxe2 {[%clk 0:02:16]} 22. Bxe2 {[%clk 0:01:05]}  Kf7 {[%clk 0:02:17]} 23. Rd1 {[%clk 0:01:01]}  Ke7 {[%clk 0:02:15]} 24. a3 {[%clk 0:00:58]}  f5 {[%clk 0:02:11]} 25. c4 {[%clk 0:00:55]}  bxc4 {[%clk 0:02:07]} 26. Bxc4 {[%clk 0:00:55]}  Kf6 {[%clk 0:02:08]} 27. Re1 {[%clk 0:00:51]}  Bd7 {[%clk 0:01:57]} 28. Kc2 {[%clk 0:00:49]}  g5 {[%clk 0:01:54]} 29. Kc3 {[%clk 0:00:46]}  h5 {[%clk 0:01:51]} 30. Rd1 {[%clk 0:00:39]}  Bc6 {[%clk 0:01:43]} 31. Re1 {[%clk 0:00:39]}  Re8 {[%clk 0:01:43]} 32. Rxe8 {[%clk 0:00:33]}  Bxe8 {[%clk 0:01:44]} 33. Kd4 {[%clk 0:00:32]}  b6 {[%clk 0:01:38]} 34. g3 {[%clk 0:00:31]}  c5+ {[%clk 0:01:34]} 35. Ke3 {[%clk 0:00:24]}  h4 {[%clk 0:01:27]} 36. f4 {[%clk 0:00:22]}  b5 {[%clk 0:01:22]} 37. Bd5 {[%clk 0:00:21]}  hxg3 {[%clk 0:01:13]} 38. hxg3 {[%clk 0:00:20]}  Bd7 {[%clk 0:01:06]} 39. b3 {[%clk 0:00:16]}  gxf4+ {[%clk 0:00:55]} 40. gxf4 {[%clk 0:00:15]}  Ke7 {[%clk 0:00:50]} 41. Bf3 {[%clk 0:00:00]}  Kd6 {[%clk 0:00:50]} 0-1


[Site "https://www.chess.com"]

[Event "Titled Tuesday Blitz November 07 Late 2023"]
[White "Hoffmann, Asa"]
[Black "Przybylski, Wojciech"]
[WhiteFideId "2001470"]
[BlackFideId "1117599"]
[WhiteElo "2377"]
[BlackElo "2520"]
[Result "0-1"]
[Round "5"]
[TimeControl "180+1"]
[Date "2023.11.07"]
[WhiteClock "0:00:12"]
[BlackClock "0:00:07"]
[Board "102"]

1. d4 {[%clk 0:03:00]}  d5 {[%clk 0:02:57]} 2. Bg5 {[%clk 0:02:58]}  h6 {[%clk 0:02:54]} 3. Bh4 {[%clk 0:02:58]}  c6 {[%clk 0:02:52]} 4. e3 {[%clk 0:02:58]}  Qb6 {[%clk 0:02:52]} 5. b3 {[%clk 0:02:57]}  e5 {[%clk 0:02:49]} 6. Nf3 {[%clk 0:02:57]}  Bg4 {[%clk 0:02:41]} 7. Be2 {[%clk 0:02:55]}  e4 {[%clk 0:02:39]} 8. Nfd2 {[%clk 0:02:54]}  Bxe2 {[%clk 0:02:38]} 9. Qxe2 {[%clk 0:02:54]}  Nd7 {[%clk 0:02:33]} 10. a3 {[%clk 0:02:52]}  g5 {[%clk 0:02:23]} 11. Bg3 {[%clk 0:02:52]}  Ngf6 {[%clk 0:02:21]} 12. c4 {[%clk 0:02:51]}  h5 {[%clk 0:02:17]} 13. h4 {[%clk 0:02:50]}  g4 {[%clk 0:02:16]} 14. Nc3 {[%clk 0:02:50]}  Be7 {[%clk 0:02:11]} 15. O-O {[%clk 0:02:42]}  Rg8 {[%clk 0:01:52]} 16. c5 {[%clk 0:02:40]}  Qd8 {[%clk 0:01:49]} 17. b4 {[%clk 0:02:40]}  Nh7 {[%clk 0:01:43]} 18. b5 {[%clk 0:02:32]}  Bxh4 {[%clk 0:01:42]} 19. bxc6 {[%clk 0:02:32]}  bxc6 {[%clk 0:01:41]} 20. Qa6 {[%clk 0:02:31]}  Rg6 {[%clk 0:01:37]} 21. Rab1 {[%clk 0:02:30]}  Be7 {[%clk 0:01:28]} 22. Rb7 {[%clk 0:02:15]}  h4 {[%clk 0:01:17]} 23. Bc7 {[%clk 0:02:11]}  Qc8 {[%clk 0:01:15]} 24. Rfb1 {[%clk 0:02:11]}  Bd8 {[%clk 0:01:08]} 25. Bf4 {[%clk 0:02:06]}  g3 {[%clk 0:00:58]} 26. Ndxe4 {[%clk 0:01:56]}  dxe4 {[%clk 0:00:51]} 27. Nxe4 {[%clk 0:01:56]}  gxf2+ {[%clk 0:00:51]} 28. Kxf2 {[%clk 0:01:56]}  Nb8 {[%clk 0:00:26]} 29. Qd3 {[%clk 0:01:46]}  Qg4 {[%clk 0:00:08]} 30. Nd6+ {[%clk 0:01:30]}  Kf8 {[%clk 0:00:08]} 31. Rg1 {[%clk 0:01:30]}  Nd7 {[%clk 0:00:07]} 32. Qc4 {[%clk 0:01:11]}  Kg7 {[%clk 0:00:06]} 33. Qxf7+ {[%clk 0:01:08]}  Kh8 {[%clk 0:00:06]} 34. Rxd7 {[%clk 0:01:04]}  Rg7 {[%clk 0:00:07]} 35. Qe8+ {[%clk 0:00:50]}  Nf8 {[%clk 0:00:07]} 36. Qxf8+ {[%clk 0:00:47]}  Kh7 {[%clk 0:00:07]} 37. Rxg7+ {[%clk 0:00:44]}  Qxg7 {[%clk 0:00:08]} 38. Qxg7+ {[%clk 0:00:44]}  Kxg7 {[%clk 0:00:09]} 39. Rh1 {[%clk 0:00:44]}  Be7 {[%clk 0:00:09]} 40. Rxh4 {[%clk 0:00:44]}  Bxh4+ {[%clk 0:00:08]} 41. Kf3 {[%clk 0:00:43]}  Bf6 {[%clk 0:00:08]} 42. e4 {[%clk 0:00:42]}  Bxd4 {[%clk 0:00:07]} 43. e5 {[%clk 0:00:42]}  Bxc5 {[%clk 0:00:07]} 44. Nf5+ {[%clk 0:00:42]}  Kg6 {[%clk 0:00:07]} 45. g4 {[%clk 0:00:42]}  Rd8 {[%clk 0:00:07]} 46. Ke4 {[%clk 0:00:41]}  Rd1 {[%clk 0:00:06]} 47. e6 {[%clk 0:00:41]}  Re1+ {[%clk 0:00:06]} 48. Be3 {[%clk 0:00:39]}  Bxe3 {[%clk 0:00:06]} 49. Nxe3 {[%clk 0:00:38]}  Kf6 {[%clk 0:00:07]} 50. Kf4 {[%clk 0:00:37]}  Kxe6 {[%clk 0:00:07]} 51. g5 {[%clk 0:00:37]}  Rg1 {[%clk 0:00:07]} 52. Ng4 {[%clk 0:00:36]}  c5 {[%clk 0:00:08]} 53. g6 {[%clk 0:00:36]}  c4 {[%clk 0:00:07]} 54. g7 {[%clk 0:00:34]}  Kf7 {[%clk 0:00:08]} 55. Ne5+ {[%clk 0:00:34]}  Kxg7 {[%clk 0:00:08]} 56. Nxc4 {[%clk 0:00:34]}  Kf6 {[%clk 0:00:08]} 57. Ke4 {[%clk 0:00:34]}  Rc1 {[%clk 0:00:08]} 58. Kd5 {[%clk 0:00:33]}  Ke7 {[%clk 0:00:07]} 59. a4 {[%clk 0:00:32]}  Kd8 {[%clk 0:00:07]} 60. a5 {[%clk 0:00:31]}  Kc7 {[%clk 0:00:08]} 61. Kc5 {[%clk 0:00:31]}  Rc2 {[%clk 0:00:08]} 62. Kb5 {[%clk 0:00:31]}  Kb7 {[%clk 0:00:08]} 63. a6+ {[%clk 0:00:30]}  Kc7 {[%clk 0:00:08]} 64. Kc5 {[%clk 0:00:31]}  Rc1 {[%clk 0:00:08]} 65. Kb5 {[%clk 0:00:30]}  Rb1+ {[%clk 0:00:09]} 66. Kc5 {[%clk 0:00:30]}  Ra1 {[%clk 0:00:09]} 67. Kb5 {[%clk 0:00:30]}  Ra2 {[%clk 0:00:09]} 68. Na5 {[%clk 0:00:28]}  Rb2+ {[%clk 0:00:09]} 69. Kc5 {[%clk 0:00:28]}  Rb6 {[%clk 0:00:09]} 70. Nc4 {[%clk 0:00:27]}  Rxa6 {[%clk 0:00:09]} 71. Ne5 {[%clk 0:00:26]}  Re6 {[%clk 0:00:09]} 72. Nc4 {[%clk 0:00:26]}  Rh6 {[%clk 0:00:09]} 73. Kb5 {[%clk 0:00:25]}  Rg6 {[%clk 0:00:08]} 74. Ka5 {[%clk 0:00:25]}  Rf6 {[%clk 0:00:07]} 75. Kb5 {[%clk 0:00:24]}  Rh6 {[%clk 0:00:07]} 76. Ka5 {[%clk 0:00:24]}  Kb7 {[%clk 0:00:08]} 77. Kb5 {[%clk 0:00:24]}  Rh5+ {[%clk 0:00:08]} 78. Kb4 {[%clk 0:00:23]}  Kc6 {[%clk 0:00:07]} 79. Na5+ {[%clk 0:00:23]}  Kb6 {[%clk 0:00:08]} 80. Nc4+ {[%clk 0:00:23]}  Kb7 {[%clk 0:00:08]} 81. Na5+ {[%clk 0:00:23]}  Kc7 {[%clk 0:00:08]} 82. Nc4 {[%clk 0:00:22]}  a6 {[%clk 0:00:08]} 83. Na5 {[%clk 0:00:22]}  Kb6 {[%clk 0:00:08]} 84. Nc4+ {[%clk 0:00:22]}  Kc6 {[%clk 0:00:08]} 85. Na5+ {[%clk 0:00:22]}  Kc7 {[%clk 0:00:08]} 86. Nc4 {[%clk 0:00:22]}  Kb8 {[%clk 0:00:08]} 87. Na5 {[%clk 0:00:21]}  Rb5+ {[%clk 0:00:07]} 88. Ka4 {[%clk 0:00:21]}  Ka7 {[%clk 0:00:08]} 89. Nc4 {[%clk 0:00:20]}  Rh5 {[%clk 0:00:07]} 90. Na5 {[%clk 0:00:20]}  Kb6 {[%clk 0:00:07]} 91. Nc4+ {[%clk 0:00:20]}  Kc5 {[%clk 0:00:07]} 92. Na5 {[%clk 0:00:20]}  Rh4+ {[%clk 0:00:06]} 93. Ka3 {[%clk 0:00:20]}  Kb5 {[%clk 0:00:07]} 94. Nb3 {[%clk 0:00:20]}  Rh3 {[%clk 0:00:07]} 95. Ka2 {[%clk 0:00:19]}  Kb4 {[%clk 0:00:07]} 96. Nd4 {[%clk 0:00:18]}  Rh2+ {[%clk 0:00:07]} 97. Kb1 {[%clk 0:00:17]}  Rd2 {[%clk 0:00:07]} 98. Nc2+ {[%clk 0:00:16]}  Kb3 {[%clk 0:00:06]} 99. Na1+ {[%clk 0:00:16]}  Kc3 {[%clk 0:00:06]} 100. Nc2 {[%clk 0:00:14]}  Rxc2 {[%clk 0:00:06]} 101. Ka1 {[%clk 0:00:14]}  a5 {[%clk 0:00:06]} 102. Kb1 {[%clk 0:00:12]}  Kb3 {[%clk 0:00:06]} 103. Ka1 {[%clk 0:00:12]}  Rc1# {[%clk 0:00:07]} 0-1


[Site "https://www.chess.com"]